[Event "Late-Titled-Tuesday-Blitz-September-05-2023"]
[Site "Chess.com"]
[Date "2023.09.05"]
[Round "2"]
[White "Jarming"]
[Black "GAO"]
[Result "1-0"]
[WhiteElo "2647"]
[BlackElo "2299"]
[TimeControl "180+1"]
[EndTime "14:19:56 PDT"]
[Termination "Jarming won by checkmate"]

1. e4 {[%clk 0:03:00.1]} 1... c5 {[%clk 0:02:56]} 2. Nf3 {[%clk 0:03:00.1]} 2...
Nc6 {[%clk 0:02:56.5]} 3. g3 {[%clk 0:02:55]} 3... g6 {[%clk 0:02:54.7]} 4. Bg2
{[%clk 0:02:53.5]} 4... Bg7 {[%clk 0:02:55.4]} 5. O-O {[%clk 0:02:54.3]} 5...
Nf6 {[%clk 0:02:54.1]} 6. d3 {[%clk 0:02:54.7]} 6... e5 {[%clk 0:02:53.3]} 7.
Nc3 {[%clk 0:02:39.7]} 7... O-O {[%clk 0:02:49.8]} 8. h3 {[%clk 0:02:39.5]} 8...
d5 {[%clk 0:02:44.1]} 9. exd5 {[%clk 0:02:37.6]} 9... Nxd5 {[%clk 0:02:45]} 10.
Bd2 {[%clk 0:02:38.1]} 10... Be6 {[%clk 0:02:42]} 11. Re1 {[%clk 0:02:31.5]}
11... f6 {[%clk 0:02:38.3]} 12. Ne4 {[%clk 0:02:25.6]} 12... b6 {[%clk
0:02:28.8]} 13. c3 {[%clk 0:02:26]} 13... Qd7 {[%clk 0:02:27.5]} 14. Kh2 {[%clk
0:02:25.5]} 14... Nde7 {[%clk 0:02:22.8]} 15. Bf1 {[%clk 0:02:18.2]} 15... Rad8
{[%clk 0:02:15.6]} 16. Qc1 {[%clk 0:02:17.1]} 16... Nf5 {[%clk 0:02:03.2]} 17.
b3 {[%clk 0:02:00.7]} 17... Nd6 {[%clk 0:01:53.6]} 18. Bh6 {[%clk 0:01:58.6]}
18... a5 {[%clk 0:01:40.3]} 19. Nxd6 {[%clk 0:01:52.7]} 19... Qxd6 {[%clk
0:01:40]} 20. d4 {[%clk 0:01:44.6]} 20... cxd4 {[%clk 0:01:37.6]} 21. cxd4
{[%clk 0:01:45.4]} 21... Nxd4 {[%clk 0:01:35]} 22. Nxd4 {[%clk 0:01:44.4]} 22...
Qxd4 {[%clk 0:01:31.3]} 23. Be3 {[%clk 0:01:41.9]} 23... Qd6 {[%clk 0:01:21.4]}
24. Rd1 {[%clk 0:01:33.1]} 24... Qb8 {[%clk 0:00:55.9]} 25. Qc6 {[%clk
0:01:29.5]} 25... Bf7 {[%clk 0:00:33.6]} 26. Qxb6 {[%clk 0:01:24.2]} 26... Qxb6
{[%clk 0:00:32.4]} 27. Bxb6 {[%clk 0:01:25.1]} 27... Ra8 {[%clk 0:00:31.9]} 28.
Rd7 {[%clk 0:01:20.1]} 28... a4 {[%clk 0:00:23]} 29. b4 {[%clk 0:01:14.7]} 29...
Rfb8 {[%clk 0:00:20.4]} 30. Bc5 {[%clk 0:01:12.9]} 30... Bf8 {[%clk 0:00:20.8]}
31. a3 {[%clk 0:01:04.1]} 31... Bxc5 {[%clk 0:00:19.2]} 32. bxc5 {[%clk
0:01:05]} 32... Rc8 {[%clk 0:00:18.7]} 33. Rc1 {[%clk 0:01:03.9]} 33... Be8
{[%clk 0:00:14.9]} 34. Rd6 {[%clk 0:01:01]} 34... Rc6 {[%clk 0:00:10]} 35. Bg2
{[%clk 0:00:50.5]} 35... Rxd6 {[%clk 0:00:05.9]} 36. cxd6 {[%clk 0:00:51.4]}
36... Rd8 {[%clk 0:00:06.2]} 37. Rd1 {[%clk 0:00:51.4]} 37... Kf7 {[%clk
0:00:05.9]} 38. Bd5+ {[%clk 0:00:50.7]} 38... Kf8 {[%clk 0:00:06.4]} 39. Bc4
{[%clk 0:00:50]} 39... Bc6 {[%clk 0:00:06.3]} 40. g4 {[%clk 0:00:47.6]} 40...
Ke8 {[%clk 0:00:06.3]} 41. Be6 {[%clk 0:00:47.3]} 41... Bd7 {[%clk 0:00:05.6]}
42. Bg8 {[%clk 0:00:47.5]} 42... h6 {[%clk 0:00:04.8]} 43. Kg3 {[%clk
0:00:47.7]} 43... Bc6 {[%clk 0:00:03.2]} 44. Be6 {[%clk 0:00:46]} 44... g5
{[%clk 0:00:02.4]} 45. h4 {[%clk 0:00:45.8]} 45... Bd7 {[%clk 0:00:02.1]} 46.
Ba2 {[%clk 0:00:45.5]} 46... Bc6 {[%clk 0:00:02.2]} 47. Bb1 {[%clk 0:00:43.3]}
47... Kd7 {[%clk 0:00:01.9]} 48. Bf5+ {[%clk 0:00:43.4]} 48... Ke8 {[%clk
0:00:02.6]} 49. Rd2 {[%clk 0:00:39.2]} 49... Bd7 {[%clk 0:00:02.9]} 50. Bg6+
{[%clk 0:00:38.7]} 50... Kf8 {[%clk 0:00:02.7]} 51. f3 {[%clk 0:00:37.7]} 51...
Be6 {[%clk 0:00:02.8]} 52. Be4 {[%clk 0:00:36.7]} 52... Ke8 {[%clk 0:00:02.6]}
53. Bc6+ {[%clk 0:00:37.1]} 53... Bd7 {[%clk 0:00:03]} 54. Be4 {[%clk
0:00:30.8]} 54... Be6 {[%clk 0:00:02]} 55. Kf2 {[%clk 0:00:30.4]} 55... Kd7
{[%clk 0:00:02.4]} 56. hxg5 {[%clk 0:00:30.7]} 56... hxg5 {[%clk 0:00:02.2]} 57.
Ke3 {[%clk 0:00:29.9]} 57... Rb8 {[%clk 0:00:02.2]} 58. Bc2 {[%clk 0:00:26.7]}
58... Bb3 {[%clk 0:00:01.4]} 59. Bf5+ {[%clk 0:00:26.6]} 59... Be6 {[%clk
0:00:01.7]} 60. Bc2 {[%clk 0:00:26.4]} 60... Bb3 {[%clk 0:00:01.8]} 61. Bd3
{[%clk 0:00:21]} 61... Be6 {[%clk 0:00:01.9]} 62. Kf2 {[%clk 0:00:16.8]} 62...
Bb3 {[%clk 0:00:02.2]} 63. f4 {[%clk 0:00:14.2]} 63... Be6 {[%clk 0:00:02.8]}
64. fxg5 {[%clk 0:00:15.1]} 64... fxg5 {[%clk 0:00:02.7]} 65. Be2 {[%clk
0:00:14.7]} 65... Rf8+ {[%clk 0:00:03.3]} 66. Kg3 {[%clk 0:00:14.5]} 66... Rf4
{[%clk 0:00:04.2]} 67. Rb2 {[%clk 0:00:13.9]} 67... Kxd6 {[%clk 0:00:02.9]} 68.
Rb6+ {[%clk 0:00:14.1]} 68... Ke7 {[%clk 0:00:02.8]} 69. Ra6 {[%clk 0:00:14.5]}
69... Rd4 {[%clk 0:00:02.1]} 70. Kf2 {[%clk 0:00:13.8]} 70... Rf4+ {[%clk
0:00:01.8]} 71. Kg3 {[%clk 0:00:13]} 71... Rd4 {[%clk 0:00:02.7]} 72. Ra7+
{[%clk 0:00:12.8]} 72... Kf6 {[%clk 0:00:03]} 73. Bf3 {[%clk 0:00:12.9]} 73...
Rd3 {[%clk 0:00:02.7]} 74. Kf2 {[%clk 0:00:13.4]} 74... Rxa3 {[%clk 0:00:02.8]}
75. Ra6 {[%clk 0:00:12.5]} 75... Ra2+ {[%clk 0:00:03.3]} 76. Ke1 {[%clk
0:00:11.9]} 76... a3 {[%clk 0:00:03.5]} 77. Bd5 {[%clk 0:00:12.3]} 77... Ra1+
{[%clk 0:00:04.2]} 78. Kf2 {[%clk 0:00:12.1]} 78... e4 {[%clk 0:00:01.6]} 79.
Bxe6 {[%clk 0:00:12.5]} 79... Kg7 {[%clk 0:00:02.2]} 80. Bd5 {[%clk 0:00:12.4]}
80... e3+ {[%clk 0:00:02.1]} 81. Kxe3 {[%clk 0:00:12.2]} 81... Rg1 {[%clk
0:00:02.4]} 82. Bf3 {[%clk 0:00:11.8]} 82... Ra1 {[%clk 0:00:01.6]} 83. Bd5
{[%clk 0:00:12.2]} 83... Re1+ {[%clk 0:00:01.9]} 84. Kd4 {[%clk 0:00:11.9]}
84... Ra1 {[%clk 0:00:02.8]} 85. Ke5 {[%clk 0:00:12.1]} 85... Rd1 {[%clk
0:00:03.5]} 86. Be4 {[%clk 0:00:11.6]} 86... Re1 {[%clk 0:00:04.4]} 87. Kf5
{[%clk 0:00:11.9]} 87... a2 {[%clk 0:00:03.8]} 88. Rxa2 {[%clk 0:00:11.6]} 88...
Rf1+ {[%clk 0:00:04.7]} 89. Kxg5 {[%clk 0:00:11.1]} 89... Rc1 {[%clk 0:00:05.4]}
90. Bf5 {[%clk 0:00:11.5]} 90... Rc7 {[%clk 0:00:06]} 91. Ra6 {[%clk 0:00:11.6]}
91... Re7 {[%clk 0:00:06.6]} 92. Rg6+ {[%clk 0:00:12.5]} 92... Kf8 {[%clk
0:00:06.9]} 93. Rh6 {[%clk 0:00:13.4]} 93... Kg7 {[%clk 0:00:07.3]} 94. Rh7+
{[%clk 0:00:13.3]} 94... Kf8 {[%clk 0:00:08.2]} 95. Rxe7 {[%clk 0:00:13.8]}
95... Kxe7 {[%clk 0:00:09.1]} 96. Kg6 {[%clk 0:00:14.4]} 96... Kf8 {[%clk
0:00:10]} 97. Kf6 {[%clk 0:00:15.1]} 97... Kg8 {[%clk 0:00:09.9]} 98. g5 {[%clk
0:00:16]} 98... Kf8 {[%clk 0:00:10.4]} 99. g6 {[%clk 0:00:16.6]} 99... Kg8
{[%clk 0:00:11.3]} 100. Be6+ {[%clk 0:00:17.2]} 100... Kf8 {[%clk 0:00:12.2]}
101. g7+ {[%clk 0:00:17.9]} 101... Ke8 {[%clk 0:00:11.6]} 102. g8=Q# {[%clk
0:00:18.8]} 1-0

[Event "Late-Titled-Tuesday-Blitz-September-05-2023"]
[Site "Chess.com"]
[Date "2023.09.05"]
[Round "2"]
[White "ChessSwole"]
[Black "realburq"]
[Result "1-0"]
[WhiteElo "2690"]
[BlackElo "2375"]
[TimeControl "180+1"]
[EndTime "14:20:25 PDT"]
[Termination "ChessSwole won by checkmate"]

1. e4 {[%clk 0:03:00.9]} 1... c5 {[%clk 0:02:58.6]} 2. Nf3 {[%clk 0:03:00.9]}
2... Nc6 {[%clk 0:02:58.3]} 3. d4 {[%clk 0:03:00.1]} 3... cxd4 {[%clk
0:02:59.2]} 4. Nxd4 {[%clk 0:03:01]} 4... g6 {[%clk 0:02:59.4]} 5. Nc3 {[%clk
0:02:55]} 5... Bg7 {[%clk 0:02:59.5]} 6. Be3 {[%clk 0:02:55.7]} 6... Nf6 {[%clk
0:02:59]} 7. Bc4 {[%clk 0:02:54.9]} 7... O-O {[%clk 0:02:58.6]} 8. Bb3 {[%clk
0:02:55.1]} 8... d6 {[%clk 0:02:56.4]} 9. f3 {[%clk 0:02:51.2]} 9... Bd7 {[%clk
0:02:55.3]} 10. Qd2 {[%clk 0:02:50.8]} 10... Qa5 {[%clk 0:02:54.8]} 11. O-O-O
{[%clk 0:02:45.2]} 11... Rfc8 {[%clk 0:02:54.2]} 12. Kb1 {[%clk 0:02:40.3]}
12... Ne5 {[%clk 0:02:43.7]} 13. Qe2 {[%clk 0:02:11.5]} 13... Rxc3 {[%clk
0:02:39]} 14. Bd2 {[%clk 0:02:09.7]} 14... Rac8 {[%clk 0:02:37.6]} 15. Bxc3
{[%clk 0:02:09.7]} 15... Rxc3 {[%clk 0:02:37.3]} 16. bxc3 {[%clk 0:02:10.6]}
16... Qxc3 {[%clk 0:02:34.8]} 17. f4 {[%clk 0:01:30.7]} 17... Nc6 {[%clk
0:02:17.2]} 18. Nxc6 {[%clk 0:00:42.8]} 18... Bxc6 {[%clk 0:02:17.4]} 19. Rd3
{[%clk 0:00:40.4]} 19... Nxe4 {[%clk 0:02:07.8]} 20. Rxc3 {[%clk 0:00:33.3]}
20... Nxc3+ {[%clk 0:02:08.7]} 21. Kc1 {[%clk 0:00:34]} 21... Nxe2+ {[%clk
0:02:09.6]} 22. Kd2 {[%clk 0:00:34.9]} 22... Nxf4 {[%clk 0:02:08.5]} 23. Rf1
{[%clk 0:00:34.6]} 23... Bh6 {[%clk 0:01:41]} 24. g3 {[%clk 0:00:32]} 24... Ne6+
{[%clk 0:01:30.5]} 25. Kd1 {[%clk 0:00:28.9]} 25... Kg7 {[%clk 0:01:19.9]} 26.
c3 {[%clk 0:00:28.6]} 26... Be3 {[%clk 0:01:12.8]} 27. Ke2 {[%clk 0:00:26.9]}
27... Bc5 {[%clk 0:01:11.2]} 28. Kd2 {[%clk 0:00:24.5]} 28... b5 {[%clk
0:01:02.9]} 29. h4 {[%clk 0:00:24]} 29... b4 {[%clk 0:01:03.3]} 30. Kd3 {[%clk
0:00:20.6]} 30... bxc3 {[%clk 0:01:01.7]} 31. Kxc3 {[%clk 0:00:21.5]} 31... Bd4+
{[%clk 0:01:00.3]} 32. Kd2 {[%clk 0:00:21.5]} 32... Bc5 {[%clk 0:00:58.7]} 33.
a4 {[%clk 0:00:20.7]} 33... a5 {[%clk 0:00:58.1]} 34. Rb1 {[%clk 0:00:19.9]}
34... Bb4+ {[%clk 0:00:57.4]} 35. Kd3 {[%clk 0:00:19.8]} 35... Nc5+ {[%clk
0:00:57.6]} 36. Kc4 {[%clk 0:00:20.5]} 36... Nxb3 {[%clk 0:00:56.5]} 37. Kxb3
{[%clk 0:00:21.4]} 37... e5 {[%clk 0:00:50.6]} 38. Kc4 {[%clk 0:00:21.4]} 38...
d5+ {[%clk 0:00:48.6]} 39. Kd3 {[%clk 0:00:21.7]} 39... e4+ {[%clk 0:00:48.5]}
40. Kd4 {[%clk 0:00:21.8]} 40... Bxa4 {[%clk 0:00:40]} 41. Kxd5 {[%clk
0:00:22.7]} 41... Bc2 {[%clk 0:00:39]} 42. Rc1 {[%clk 0:00:21.3]} 42... Bd3
{[%clk 0:00:36.8]} 43. Kd4 {[%clk 0:00:21.9]} 43... Bd2 {[%clk 0:00:34]} 44. Rc7
{[%clk 0:00:21.8]} 44... Bb5 {[%clk 0:00:28.7]} 45. Kxe4 {[%clk 0:00:19.3]}
45... a4 {[%clk 0:00:25.3]} 46. Rc5 {[%clk 0:00:18.5]} 46... Bd7 {[%clk
0:00:21.8]} 47. Rc7 {[%clk 0:00:18.6]} 47... Be6 {[%clk 0:00:21.6]} 48. Ra7
{[%clk 0:00:18.6]} 48... Bc3 {[%clk 0:00:20.1]} 49. Rxa4 {[%clk 0:00:17.8]}
49... h5 {[%clk 0:00:19.5]} 50. Ra3 {[%clk 0:00:17]} 50... Be1 {[%clk
0:00:19.8]} 51. Kf3 {[%clk 0:00:16.6]} 51... Bg4+ {[%clk 0:00:20]} 52. Kg2
{[%clk 0:00:16.8]} 52... Bb4 {[%clk 0:00:20.3]} 53. Ra4 {[%clk 0:00:17.2]} 53...
Bd6 {[%clk 0:00:20.3]} 54. Rd4 {[%clk 0:00:17.6]} 54... Be5 {[%clk 0:00:20.6]}
55. Re4 {[%clk 0:00:18.1]} 55... Kf6 {[%clk 0:00:20.7]} 56. Ra4 {[%clk
0:00:18.5]} 56... Bf5 {[%clk 0:00:21.1]} 57. Ra6+ {[%clk 0:00:18.9]} 57... Be6
{[%clk 0:00:21.7]} 58. Kf3 {[%clk 0:00:19.6]} 58... Kf5 {[%clk 0:00:21.9]} 59.
Ra5 {[%clk 0:00:19.9]} 59... Bd7 {[%clk 0:00:21.4]} 60. Rc5 {[%clk 0:00:19.4]}
60... Ba4 {[%clk 0:00:19.4]} 61. Rc4 {[%clk 0:00:18.2]} 61... Bd1+ {[%clk
0:00:19.2]} 62. Kg2 {[%clk 0:00:18.8]} 62... f6 {[%clk 0:00:19.1]} 63. Rb4
{[%clk 0:00:19.2]} 63... Be2 {[%clk 0:00:16.1]} 64. Rb2 {[%clk 0:00:19]} 64...
Bc4 {[%clk 0:00:15.9]} 65. Rb4 {[%clk 0:00:19.5]} 65... Bd5+ {[%clk 0:00:16.1]}
66. Kh3 {[%clk 0:00:18.8]} 66... g5 {[%clk 0:00:15.2]} 67. hxg5 {[%clk
0:00:18.5]} 67... fxg5 {[%clk 0:00:16.1]} 68. g4+ {[%clk 0:00:18.6]} 68... hxg4+
{[%clk 0:00:17]} 69. Rxg4 {[%clk 0:00:19]} 69... Bg2+ {[%clk 0:00:16.7]} 70.
Rxg2 {[%clk 0:00:18.8]} 70... Bf4 {[%clk 0:00:16.6]} 71. Rg1 {[%clk 0:00:17.8]}
71... Ke4 {[%clk 0:00:16.9]} 72. Kg4 {[%clk 0:00:18.1]} 72... Ke3 {[%clk
0:00:15.8]} 73. Re1+ {[%clk 0:00:18.4]} 73... Kf2 {[%clk 0:00:16.1]} 74. Re6
{[%clk 0:00:19.3]} 74... Be3 {[%clk 0:00:15.2]} 75. Ra6 {[%clk 0:00:20.2]} 75...
Ke2 {[%clk 0:00:15.5]} 76. Ra2+ {[%clk 0:00:21.1]} 76... Kd3 {[%clk 0:00:16]}
77. Kf3 {[%clk 0:00:22]} 77... Bf4 {[%clk 0:00:15.6]} 78. Ra4 {[%clk 0:00:22.2]}
78... Kc3 {[%clk 0:00:11.6]} 79. Ra8 {[%clk 0:00:21.4]} 79... Kb4 {[%clk
0:00:11.6]} 80. Rc8 {[%clk 0:00:22.3]} 80... Kb5 {[%clk 0:00:11.8]} 81. Ke4
{[%clk 0:00:22.9]} 81... Kb6 {[%clk 0:00:12.1]} 82. Kd5 {[%clk 0:00:23]} 82...
Kb7 {[%clk 0:00:12.7]} 83. Rg8 {[%clk 0:00:22.6]} 83... Bb8 {[%clk 0:00:11.3]}
84. Rxg5 {[%clk 0:00:22.2]} 84... Ka8 {[%clk 0:00:10.9]} 85. Kc6 {[%clk
0:00:22.1]} 85... Ba7 {[%clk 0:00:11]} 86. Rg7 {[%clk 0:00:20.7]} 86... Bb8
{[%clk 0:00:10.7]} 87. Kb6 {[%clk 0:00:21.3]} 87... Be5 {[%clk 0:00:09.8]} 88.
Ra7+ {[%clk 0:00:21.9]} 88... Kb8 {[%clk 0:00:09.9]} 89. Re7 {[%clk 0:00:22.5]}
89... Bd4+ {[%clk 0:00:08.9]} 90. Kc6 {[%clk 0:00:23]} 90... Ka8 {[%clk
0:00:08.7]} 91. Re8+ {[%clk 0:00:22.9]} 91... Ka7 {[%clk 0:00:08.7]} 92. Rg8
{[%clk 0:00:21.5]} 92... Bf2 {[%clk 0:00:07.1]} 93. Rg7+ {[%clk 0:00:18.8]}
93... Ka8 {[%clk 0:00:06.4]} 94. Rg2 {[%clk 0:00:19.5]} 94... Be3 {[%clk
0:00:05.9]} 95. Ra2+ {[%clk 0:00:18.8]} 95... Kb8 {[%clk 0:00:05.5]} 96. Rb2+
{[%clk 0:00:19.5]} 96... Ka8 {[%clk 0:00:05.9]} 97. Rb7 {[%clk 0:00:15]} 97...
Bd4 {[%clk 0:00:05.7]} 98. Rd7 {[%clk 0:00:14.3]} 98... Be3 {[%clk 0:00:06]} 99.
Kb5 {[%clk 0:00:14]} 99... Kb8 {[%clk 0:00:05.5]} 100. Ka6 {[%clk 0:00:14.3]}
100... Ka8 {[%clk 0:00:05.8]} 101. Rd8# {[%clk 0:00:14.3]} 1-0

[Event "Late-Titled-Tuesday-Blitz-September-05-2023"]
[Site "Chess.com"]
[Date "2023.09.05"]
[Round "2"]
[White "Fore_Man"]
[Black "Langua_Chess"]
[Result "0-1"]
[WhiteElo "2274"]
[BlackElo "2486"]
[TimeControl "180+1"]
[EndTime "14:20:42 PDT"]
[Termination "Langua_Chess won by checkmate"]

1. Nf3 {[%clk 0:03:00.9]} 1... d5 {[%clk 0:02:46.5]} 2. d4 {[%clk 0:03:00.8]}
2... Nf6 {[%clk 0:02:45]} 3. c4 {[%clk 0:03:00.7]} 3... c6 {[%clk 0:02:45.2]} 4.
e3 {[%clk 0:02:59.3]} 4... Bf5 {[%clk 0:02:43.4]} 5. Nc3 {[%clk 0:02:59.2]} 5...
e6 {[%clk 0:02:43.3]} 6. Bd3 {[%clk 0:02:59.2]} 6... Bxd3 {[%clk 0:02:23.1]} 7.
Qxd3 {[%clk 0:03:00.1]} 7... Bd6 {[%clk 0:02:23.4]} 8. b3 {[%clk 0:02:57.5]}
8... Nbd7 {[%clk 0:02:23.4]} 9. Bb2 {[%clk 0:02:57.7]} 9... dxc4 {[%clk
0:02:15.8]} 10. bxc4 {[%clk 0:02:52.2]} 10... e5 {[%clk 0:02:12.1]} 11. O-O
{[%clk 0:02:49.7]} 11... O-O {[%clk 0:02:11.6]} 12. Rab1 {[%clk 0:02:40.6]}
12... Re8 {[%clk 0:02:10.2]} 13. Ne4 {[%clk 0:02:36]} 13... Nxe4 {[%clk
0:01:54.4]} 14. Qxe4 {[%clk 0:02:36.9]} 14... exd4 {[%clk 0:01:51.5]} 15. Qxd4
{[%clk 0:02:37.8]} 15... Nf6 {[%clk 0:01:33.2]} 16. Rbd1 {[%clk 0:02:34.4]}
16... Be7 {[%clk 0:01:22.6]} 17. Qf4 {[%clk 0:01:38]} 17... Qa5 {[%clk
0:01:17.1]} 18. Qd4 {[%clk 0:01:21.5]} 18... Rad8 {[%clk 0:01:08.5]} 19. Qc3
{[%clk 0:01:19.2]} 19... Qxc3 {[%clk 0:00:46]} 20. Bxc3 {[%clk 0:01:20.1]} 20...
Ne4 {[%clk 0:00:46.1]} 21. Bb2 {[%clk 0:01:10.7]} 21... Bb4 {[%clk 0:00:35.7]}
22. a3 {[%clk 0:00:59.6]} 22... Bc3 {[%clk 0:00:30.7]} 23. Bc1 {[%clk 0:00:48]}
23... f5 {[%clk 0:00:20.5]} 24. Nh4 {[%clk 0:00:45.6]} 24... g6 {[%clk
0:00:20.3]} 25. Nf3 {[%clk 0:00:44.7]} 25... Bf6 {[%clk 0:00:19.5]} 26. g3
{[%clk 0:00:44.8]} 26... Nc3 {[%clk 0:00:17.9]} 27. Rxd8 {[%clk 0:00:36.5]}
27... Rxd8 {[%clk 0:00:18.8]} 28. Kg2 {[%clk 0:00:36.9]} 28... b6 {[%clk
0:00:11.3]} 29. Bb2 {[%clk 0:00:36.1]} 29... Kf7 {[%clk 0:00:08]} 30. Rc1 {[%clk
0:00:29]} 30... Ne4 {[%clk 0:00:06.3]} 31. Rc2 {[%clk 0:00:18.9]} 31... c5
{[%clk 0:00:06.3]} 32. a4 {[%clk 0:00:15.6]} 32... Ke6 {[%clk 0:00:05.6]} 33. a5
{[%clk 0:00:15.2]} 33... bxa5 {[%clk 0:00:04.5]} 34. Bxf6 {[%clk 0:00:15.6]}
34... Kxf6 {[%clk 0:00:02.9]} 35. Ra2 {[%clk 0:00:16.5]} 35... Rd1 {[%clk
0:00:02]} 36. Rxa5 {[%clk 0:00:16.1]} 36... Rc1 {[%clk 0:00:02.5]} 37. Rxa7
{[%clk 0:00:15.8]} 37... Rxc4 {[%clk 0:00:01.9]} 38. Rxh7 {[%clk 0:00:16.5]}
38... Rc2 {[%clk 0:00:01.9]} 39. Nh4 {[%clk 0:00:10.4]} 39... Rxf2+ {[%clk
0:00:02.8]} 40. Kg1 {[%clk 0:00:11]} 40... Rd2 {[%clk 0:00:02.6]} 41. Rh6 {[%clk
0:00:11.2]} 41... Rd1+ {[%clk 0:00:03.3]} 42. Kg2 {[%clk 0:00:11.8]} 42... Rd2+
{[%clk 0:00:03.9]} 43. Kg1 {[%clk 0:00:12.4]} 43... c4 {[%clk 0:00:03.3]} 44.
Rxg6+ {[%clk 0:00:11.9]} 44... Ke5 {[%clk 0:00:04.1]} 45. Rg8 {[%clk 0:00:11.9]}
45... c3 {[%clk 0:00:04.7]} 46. Re8+ {[%clk 0:00:12.5]} 46... Kf6 {[%clk
0:00:03.6]} 47. Rf8+ {[%clk 0:00:11.8]} 47... Ke6 {[%clk 0:00:03.9]} 48. Re8+
{[%clk 0:00:11.5]} 48... Kf7 {[%clk 0:00:02.6]} 49. Rc8 {[%clk 0:00:11.7]} 49...
c2 {[%clk 0:00:03.2]} 50. Nxf5 {[%clk 0:00:12.1]} 50... Rd1+ {[%clk 0:00:03.6]}
51. Kg2 {[%clk 0:00:12.9]} 51... c1=Q {[%clk 0:00:03.6]} 52. Rxc1 {[%clk
0:00:13.8]} 52... Rxc1 {[%clk 0:00:04.2]} 53. Kf3 {[%clk 0:00:14.2]} 53... Nd2+
{[%clk 0:00:04.2]} 54. Kg4 {[%clk 0:00:14.2]} 54... Nb3 {[%clk 0:00:04.5]} 55.
Nd6+ {[%clk 0:00:14.4]} 55... Ke6 {[%clk 0:00:04.7]} 56. Ne4 {[%clk 0:00:15.3]}
56... Rc4 {[%clk 0:00:04]} 57. Kf3 {[%clk 0:00:13.9]} 57... Ke5 {[%clk
0:00:04.6]} 58. Ng5 {[%clk 0:00:13.7]} 58... Nd2+ {[%clk 0:00:04.4]} 59. Kg2
{[%clk 0:00:13.2]} 59... Ne4 {[%clk 0:00:04.9]} 60. Nf3+ {[%clk 0:00:12.9]}
60... Kf6 {[%clk 0:00:04.5]} 61. h4 {[%clk 0:00:13.4]} 61... Rc2+ {[%clk
0:00:04.5]} 62. Kg1 {[%clk 0:00:13.3]} 62... Re2 {[%clk 0:00:04.1]} 63. Nh2
{[%clk 0:00:08]} 63... Kf5 {[%clk 0:00:02.3]} 64. g4+ {[%clk 0:00:07.1]} 64...
Kf6 {[%clk 0:00:01.8]} 65. g5+ {[%clk 0:00:07.7]} 65... Kf5 {[%clk 0:00:02.4]}
66. Nf3 {[%clk 0:00:08.3]} 66... Rxe3 {[%clk 0:00:01.8]} 67. Nd4+ {[%clk
0:00:08.9]} 67... Kf4 {[%clk 0:00:01.4]} 68. Ne6+ {[%clk 0:00:08.7]} 68... Kf3
{[%clk 0:00:01.4]} 69. g6 {[%clk 0:00:08.2]} 69... Kg4 {[%clk 0:00:01.8]} 70. g7
{[%clk 0:00:08.1]} 70... Rg3+ {[%clk 0:00:02.5]} 71. Kf1 {[%clk 0:00:07.8]}
71... Kxh4 {[%clk 0:00:03.1]} 72. Ke2 {[%clk 0:00:04.7]} 72... Nf6 {[%clk
0:00:03.6]} 73. Kf2 {[%clk 0:00:04.3]} 73... Rg4 {[%clk 0:00:03.3]} 74. Kf3
{[%clk 0:00:04.4]} 74... Rg6 {[%clk 0:00:03.1]} 75. Kf4 {[%clk 0:00:04.3]} 75...
Nh5+ {[%clk 0:00:02.9]} 76. Kf5 {[%clk 0:00:04.7]} 76... Rg2 {[%clk 0:00:01.8]}
77. Ke5 {[%clk 0:00:02.6]} 77... Rg1 {[%clk 0:00:02.3]} 78. Kd6 {[%clk
0:00:03.1]} 78... Nxg7 {[%clk 0:00:02.5]} 79. Nf4 {[%clk 0:00:02.7]} 79... Rg4
{[%clk 0:00:02.4]} 80. Nd5 {[%clk 0:00:03.6]} 80... Nf5+ {[%clk 0:00:02]} 81.
Ke5 {[%clk 0:00:04.5]} 81... Ng3 {[%clk 0:00:02.7]} 82. Nf6 {[%clk 0:00:04.8]}
82... Rg5+ {[%clk 0:00:03.2]} 83. Ke6 {[%clk 0:00:05.4]} 83... Ne2 {[%clk
0:00:03.5]} 84. Ne8 {[%clk 0:00:04.6]} 84... Nf4+ {[%clk 0:00:04]} 85. Kf7
{[%clk 0:00:04.2]} 85... Kg4 {[%clk 0:00:04.3]} 86. Nf6+ {[%clk 0:00:04.6]}
86... Kf5 {[%clk 0:00:05]} 87. Ne8 {[%clk 0:00:05.2]} 87... Rg1 {[%clk
0:00:04.1]} 88. Ng7+ {[%clk 0:00:06.1]} 88... Ke5 {[%clk 0:00:04.2]} 89. Ne8
{[%clk 0:00:05.9]} 89... Nd5 {[%clk 0:00:04.7]} 90. Ng7 {[%clk 0:00:04.8]} 90...
Rf1+ {[%clk 0:00:05.2]} 91. Kg6 {[%clk 0:00:04.2]} 91... Rg1+ {[%clk 0:00:06.1]}
92. Kf7 {[%clk 0:00:04.6]} 92... Ra1 {[%clk 0:00:05]} 93. Kg6 {[%clk 0:00:04.1]}
93... Ra7 {[%clk 0:00:05.5]} 94. Nh5 {[%clk 0:00:04.1]} 94... Nf4+ {[%clk
0:00:05.6]} 95. Kg5 {[%clk 0:00:02.4]} 95... Nxh5 {[%clk 0:00:05.8]} 96. Kxh5
{[%clk 0:00:03.3]} 96... Kf5 {[%clk 0:00:04.7]} 97. Kh4 {[%clk 0:00:04.2]} 97...
Rg7 {[%clk 0:00:04.7]} 98. Kh3 {[%clk 0:00:05.1]} 98... Kf4 {[%clk 0:00:05]} 99.
Kh2 {[%clk 0:00:06]} 99... Kf3 {[%clk 0:00:05.6]} 100. Kh1 {[%clk 0:00:06.9]}
100... Kf2 {[%clk 0:00:06.1]} 101. Kh2 {[%clk 0:00:07.3]} 101... Rh7# {[%clk
0:00:06.8]} 0-1

[Event "Late-Titled-Tuesday-Blitz-September-05-2023"]
[Site "Chess.com"]
[Date "2023.09.05"]
[Round "3"]
[White "Roedor"]
[Black "wadsy27"]
[Result "0-1"]
[WhiteElo "2423"]
[BlackElo "2602"]
[TimeControl "180+1"]
[EndTime "14:23:48 PDT"]
[Termination "wadsy27 won by resignation"]

1. d4 {[%clk 0:02:57]} 1... Nf6 {[%clk 0:02:57.3]} 2. c4 {[%clk 0:02:56.9]} 2...
c5 {[%clk 0:02:57.8]} 3. d5 {[%clk 0:02:56.6]} 3... e6 {[%clk 0:02:58.2]} 4. Nc3
{[%clk 0:02:56.2]} 4... exd5 {[%clk 0:02:58.4]} 5. cxd5 {[%clk 0:02:57.1]} 5...
d6 {[%clk 0:02:58.4]} 6. h3 {[%clk 0:02:57.5]} 6... g6 {[%clk 0:02:58.1]} 7. e4
{[%clk 0:02:57.7]} 7... Bg7 {[%clk 0:02:57.9]} 8. Bd3 {[%clk 0:02:58.3]} 8...
O-O {[%clk 0:02:55.5]} 9. Bg5 {[%clk 0:02:58.2]} 9... h6 {[%clk 0:02:50.9]} 10.
Be3 {[%clk 0:02:57.9]} 10... a6 {[%clk 0:02:49.5]} 11. a4 {[%clk 0:02:55]} 11...
Re8 {[%clk 0:02:49.3]} 12. Nf3 {[%clk 0:02:54.8]} 12... c4 {[%clk 0:02:47.3]}
13. Bc2 {[%clk 0:02:55.1]} 13... Nbd7 {[%clk 0:02:47.4]} 14. O-O {[%clk
0:02:54.1]} 14... Rb8 {[%clk 0:02:46.9]} 15. Re1 {[%clk 0:02:52.7]} 15... b5
{[%clk 0:02:46.9]} 16. axb5 {[%clk 0:02:52.3]} 16... axb5 {[%clk 0:02:47.8]} 17.
Nd4 {[%clk 0:02:52.9]} 17... Bb7 {[%clk 0:02:47.6]} 18. Nc6 {[%clk 0:02:51.6]}
18... Bxc6 {[%clk 0:02:46.7]} 19. dxc6 {[%clk 0:02:52.5]} 19... Ne5 {[%clk
0:02:43]} 20. Ra7 {[%clk 0:02:47.7]} 20... Nxc6 {[%clk 0:02:42.8]} 21. Ra6
{[%clk 0:02:46.4]} 21... Qc7 {[%clk 0:02:30.2]} 22. Nd5 {[%clk 0:02:35.7]} 22...
Nxd5 {[%clk 0:02:29.5]} 23. Qxd5 {[%clk 0:02:36.6]} 23... Nb4 {[%clk 0:02:27]}
24. Qxd6 {[%clk 0:02:34.2]} 24... Qxd6 {[%clk 0:02:25.6]} 25. Rxd6 {[%clk
0:02:35.1]} 25... Nxc2 {[%clk 0:02:25.7]} 0-1